fUSD/lending_fUSD_20260311
["ID","MTS","AMOUNT","RATE_DAILY","PERIOD"]
[408200373,1773221441381,-732.9089404,0.0001999,2]
[408200374,1773221441390,-187.78006525,0.00019996,2]
[408200375,1773221441399,-151.0,0.00019997,2]
[408200376,1773221441408,-151.0,0.00019997,2]
[408200377,1773221441417,-310.89756555,0.00019999,2]
[408200378,1773221441426,-300.0,0.00019999,2]
[408200379,1773221441435,-300.0,0.00019999,2]
[408200380,1773221441444,-300.0,0.00019999,2]
[408200381,1773221441453,-666.0,0.00019999,2]
[408200382,1773221441465,-300.0,0.00019999,2]
[408200383,1773221441475,-1090.54690258,0.00019999,5]
[408200384,1773221441484,-204.07600257,0.00019999,5]
[408200385,1773221441493,-1553.1996836,0.00019999,2]
[408200386,1773221441503,-1120.3856,0.00019999,2]
[408200387,1773221441512,-1366.1579626,0.00019999,5]
[408200388,1773221441521,-500.0,0.00019999,2]
[408200389,1773221441530,-500.0,0.00019999,2]
[408200390,1773221441540,-500.0,0.00019999,2]
[408200391,1773221441549,-500.0,0.00019999,2]
[408200392,1773221441558,-500.0,0.00019999,2]
[408200393,1773221441567,-500.0,0.00019999,2]
[408200394,1773221441576,-500.0,0.00019999,2]
[408200395,1773221441585,-500.0,0.00019999,2]
[408200396,1773221441594,-500.0,0.00019999,2]
[408200397,1773221441603,-500.0,0.00019999,2]
[408200398,1773221441612,-507.53424196,0.00019999,2]
[408200399,1773221441622,-13631.6729987,0.00019999,2]
[408200400,1773221441631,-53711.3226145,0.00019999,2]
[408200401,1773221441641,-500.0,0.00019999,2]
[408200402,1773221441650,-500.0,0.00019999,2]
[408200403,1773221441659,-500.0,0.00019999,2]
[408200404,1773221441668,-500.0,0.00019999,2]
[408200405,1773221441677,-500.0,0.00019999,2]
[408200406,1773221441690,-500.0,0.00019999,2]
[408200407,1773221441699,-3512.3356503,0.00019999,2]
[408200408,1773221441709,-500.0,0.00019999,2]
[408200409,1773221441718,-2336.261377,0.00019999,2]
[408200410,1773221441728,-500.0,0.00019999,2]
[408200411,1773221441738,-201049.1675853,0.00019999,2]
[408200412,1773221441747,-6724.9693973,0.00019999,2]
[408200413,1773221441757,-981.54307946,0.00019999,2]
[408200414,1773221441766,-202.24690222,0.00019999,2]
[408200415,1773221441776,-500.0,0.00019999,2]
[408200416,1773221441785,-349.47089927,0.00019999,2]
[408200417,1773221441794,-236.66097023,0.00019999,2]
[408200418,1773221441804,-500.0,0.00019999,2]
[408200419,1773221441813,-319.79990545,0.00019999,2]
[408200420,1773221441822,-2750.0,0.0002,2]
[408200421,1773221441836,-615859.54084469,0.0002,2]
[408200422,1773221441856,-348.06,0.0002,2]
[408200423,1773221441874,-1793.32906339,0.0002,2]
[408200424,1773221441883,-2565552.07699085,0.0002,2]
[408200433,1773221446168,-1357.8,0.00019722,2]
[408200438,1773221559088,302.0,0.000151,2]
[408200440,1773221612215,302.0,0.000151,2]
[408200442,1773221649568,151.0,0.000151,2]
[408200470,1773222003715,275.0,0.000151,2]
[408200472,1773222007386,161.0,0.000151,2]
[408200476,1773222086718,1512.08634238,0.000151,2]
[408200488,1773222428769,-5000.0,0.00047457,30]
[408200489,1773222428798,-5000.0,0.00047457,30]
[408200490,1773222428826,-5000.0,0.00047457,30]
[408200491,1773222428852,-5000.0,0.00047457,30]
[408200492,1773222428879,-4995.0,0.00047457,30]
[408200493,1773222428906,-5000.0,0.00047457,120]
[408200494,1773222428933,-5000.0,0.00047457,120]
[408200495,1773222428961,-5000.0,0.00047457,120]
[408200496,1773222428988,-5000.0,0.00047457,120]
[408200497,1773222429015,-4995.0,0.00047457,120]
[408200498,1773222429042,-164.0,0.00047457,30]
[408200499,1773222429069,-164.0,0.00047457,120]
[408200500,1773222429097,-10004.57186345,0.00047457,60]
[408200501,1773222429124,-10004.57186345,0.00047457,60]
[408200502,1773222429152,-10004.57186345,0.00047457,60]
[408200503,1773222429178,-10004.57186345,0.00047457,60]
[408200504,1773222429203,-10004.57186345,0.00047457,60]
[408200505,1773222429229,-10004.57186345,0.00047457,60]
[408200506,1773222429256,-10004.57186345,0.00047457,60]
[408200507,1773222429282,-10004.57186345,0.00047457,60]
[408200508,1773222429309,-10004.57186345,0.00047457,60]
[408200509,1773222429338,-500.0,0.00047457,120]
[408200510,1773222429365,-10004.57186345,0.00047457,60]
[408200511,1773222429395,-306.29825409,0.00047457,120]
[408200512,1773222429424,-10004.57186345,0.00047457,60]
[408200513,1773222429452,-10004.57186345,0.00047457,60]
[408200514,1773222429480,-10004.57186345,0.00047457,60]
[408200515,1773222429507,-10004.57186345,0.00047457,60]
[408200516,1773222429533,-5000.0,0.00047457,30]
[408200517,1773222429560,-10004.57186345,0.00047457,60]
[408200518,1773222429589,-5000.0,0.00047457,30]
[408200519,1773222429617,-10004.57186345,0.00047457,60]
[408200520,1773222429929,-10004.57186345,0.00047457,60]
[408200521,1773222429959,-3500.0,0.00047457,30]
[408200522,1773222429989,-10004.57186345,0.00047457,60]
[408200523,1773222430018,-10004.57186345,0.00047457,60]
[408200524,1773222430046,-5000.0,0.00047457,120]
[408200525,1773222430076,-10044.59015091,0.00047457,60]
[408200526,1773222430104,-5000.0,0.00047457,120]
[408200527,1773222430131,-3500.0,0.00047457,120]
[408200528,1773222430159,-179.93323745,0.00047457,120]
[408200529,1773222430184,-512.35842484,0.00047457,120]
[408200530,1773222430209,-191.03742623,0.00047457,120]
[408200531,1773222430233,-215.04753428,0.00047457,120]
[408200532,1773222430262,-218.42355319,0.00047457,120]
[408200533,1773222430286,-154.28183101,0.00047457,120]
[408200534,1773222430310,-162.04153162,0.00047457,120]
[408200535,1773222430335,-500.0,0.00047457,120]
[408200536,1773222430360,-587.16232429,0.00047457,120]
[408200537,1773222430386,-500.0,0.00047457,120]
[408200538,1773222430413,-512.0330626,0.00047457,120]
[408200539,1773222430437,-1364.44,0.00047457,120]
[408200540,1773222430474,-248.17284436,0.00047457,120]
[408200541,1773222430502,-1364.44,0.00047457,120]
[408200542,1773222430530,-1364.44,0.00047457,120]
[408200543,1773222430557,-1364.44,0.00047457,120]
[408200544,1773222430584,-1364.44,0.00047457,120]
[408200545,1773222430609,-1364.44,0.00047457,120]
[408200546,1773222430635,-1364.44,0.00047457,120]
[408200547,1773222430659,-1364.44,0.00047457,120]
[408200548,1773222430685,-532.31750097,0.00047457,120]
[408200549,1773222430710,-1364.44,0.00047457,120]
[408200550,1773222430735,-1364.44,0.00047457,120]
[408200551,1773222430765,-1364.44,0.00047457,120]
[408200552,1773222430792,-273.03139827,0.00047457,120]
[408200553,1773222430818,-1364.44,0.00047457,120]
[408200554,1773222430842,-1364.44,0.00047457,120]
[408200555,1773222430866,-1364.44,0.00047457,120]
[408200556,1773222430895,-1364.44,0.00047457,120]
[408200557,1773222430920,-1364.44,0.00047457,120]
[408200558,1773222430946,-251.77766581,0.00047457,120]
[408200559,1773222430971,-1364.44,0.00047457,120]
[408200560,1773222430995,-1364.44,0.00047457,120]
[408200561,1773222431020,-1364.44,0.00047457,120]
[408200562,1773222431044,-1364.44,0.00047457,120]
[408200563,1773222431068,-1364.44,0.00047457,120]
[408200564,1773222431093,-1364.44,0.00047457,120]
[408200565,1773222431122,-1364.44,0.00047457,120]
[408200566,1773222431147,-1364.62094438,0.00047457,120]
[408200567,1773222431173,-176.91004826,0.00047457,120]
[408200568,1773222431198,-152.66103084,0.00047457,120]
[408200569,1773222431224,-500.0,0.00047457,120]
[408200570,1773222431250,-163.56482351,0.00047457,120]
[408200571,1773222431277,-317.85999906,0.00047457,120]
[408200572,1773222431302,-600.1200005,0.00047457,120]
[408200573,1773222431326,-1000.0,0.00047457,120]
[408200574,1773222431355,-643.06599677,0.00047457,120]
[408200575,1773222431381,-155.17954737,0.00047457,120]
[408200576,1773222431407,-469.29822102,0.00047457,120]
[408200577,1773222431432,-500.0,0.00047457,120]
[408200578,1773222431457,-500.0,0.00047457,120]
[408200579,1773222431482,-500.0,0.00047457,120]
[408200580,1773222431508,-161.29058509,0.00047457,120]
[408200581,1773222431534,-500.0,0.00047457,120]
[408200582,1773222431560,-516.2618,0.00047457,120]
[408200583,1773222431590,-258.58942913,0.00047457,120]
[408200584,1773222431616,-165.10044211,0.00047457,120]
[408200585,1773222431642,-310.07946933,0.00047457,120]
[408200586,1773222431668,-179.1879987,0.00047457,120]
[408200587,1773222431695,-210.76457403,0.00047457,120]
[408200588,1773222431723,-326.3123086,0.00047457,120]
[408200589,1773222431749,-500.0,0.00047457,120]
[408200590,1773222431777,-500.0,0.00047457,120]
[408200591,1773222431803,-500.0,0.00047457,120]
[408200592,1773222431834,-380.00264974,0.00047457,120]
[408200593,1773222431860,-387.60796204,0.00047457,120]
[408200594,1773222431888,-500.0,0.00047457,60]
[408200595,1773222431912,-500.0,0.00047457,60]
[408200596,1773222431937,-500.0,0.00047457,60]
[408200597,1773222431961,-500.0,0.00047457,60]
[408200599,1773222431990,-500.0,0.00047457,60]
[408200600,1773222432014,-500.0,0.00047457,60]
[408200601,1773222432037,-500.0,0.00047457,60]
[408200602,1773222432064,-500.0,0.00047457,60]
[408200603,1773222432088,-500.0,0.00047457,60]
[408200604,1773222432112,-500.0,0.00047457,60]
[408200605,1773222432137,-500.0,0.00047457,60]
[408200606,1773222432163,-500.0,0.00047457,60]
[408200607,1773222432188,-500.0,0.00047457,60]
[408200608,1773222432212,-500.0,0.00047457,60]
[408200609,1773222432236,-500.0,0.00047457,60]
[408200610,1773222432261,-190.43727495,0.00047457,120]
[408200611,1773222432285,-214.89500552,0.00047457,120]
[408200612,1773222432310,-500.0,0.00047457,60]
[408200613,1773222432334,-500.0,0.00047457,60]
[408200614,1773222432359,-500.0,0.00047457,60]
[408200615,1773222432384,-500.0,0.00047457,60]
[408200616,1773222432407,-506.9114782,0.00047457,60]
[408200617,1773222432432,-290.83421116,0.00047457,120]
[408200618,1773222432456,-282.29776747,0.00047457,120]
[408200619,1773222432481,-536.85559265,0.00047457,120]
[408200620,1773222432517,-588.30228129,0.00047457,120]
[408200621,1773222432546,-500.0,0.00047457,120]
[408200622,1773222432571,-500.0,0.00047457,120]
[408200623,1773222432783,-390.72659298,0.00047457,120]
[408200624,1773222432810,-500.0,0.00047457,120]
[408200625,1773222432841,-185.25846462,0.00047457,120]
[408200626,1773222432866,-518.23484172,0.00047457,120]
[408200627,1773222432892,-154.3637152,0.00047457,120]
[408200628,1773222432918,-371.91344001,0.00047457,120]
[408200629,1773222432944,-500.0,0.00047457,120]
[408200630,1773222432971,-500.0,0.00047457,120]
[408200631,1773222432996,-376.0001496,0.00047457,120]
[408200632,1773222433023,-221.24548121,0.00047457,120]
[408200633,1773222433054,-210.8994282,0.00047457,120]
[408200634,1773222433089,-274.99964154,0.00047457,120]
[408200635,1773222433115,-425.54111098,0.00047457,120]
[408200636,1773222433142,-500.0,0.00047457,120]
[408200637,1773222433167,-292.33434322,0.00047457,120]
[408200638,1773222433193,-160.5718206,0.00047457,120]
[408200639,1773222433218,-500.0,0.00047457,120]
[408200640,1773222433242,-500.0,0.00047457,120]
[408200641,1773222433268,-500.0,0.00047457,120]
[408200642,1773222433296,-500.0,0.00047457,120]
[408200643,1773222433322,-341.32451651,0.00047457,120]
[408200644,1773222433348,-221.73815971,0.00047457,120]
[408200645,1773222433374,-181.03123663,0.00047457,120]
[408200646,1773222433400,-365.70968881,0.00047457,120]
[408200647,1773222433424,-1967.52,0.00047457,120]
[408200648,1773222433451,-1967.52,0.00047457,120]
[408200649,1773222433476,-1967.52,0.00047457,120]
[408200650,1773222433504,-1967.52,0.00047457,120]
[408200651,1773222433534,-1967.52,0.00047457,120]
[408200652,1773222433560,-362.11747005,0.00047457,120]
[408200653,1773222433586,-1967.52,0.00047457,120]
[408200654,1773222433611,-1967.52,0.00047457,120]
[408200655,1773222433636,-1967.52,0.00047457,120]
[408200656,1773222433660,-1967.52,0.00047457,120]
[408200657,1773222433686,-1967.52,0.00047457,120]
[408200658,1773222433711,-1967.52,0.00047457,120]
[408200659,1773222433738,-1967.52,0.00047457,120]
[408200660,1773222433771,-1967.52,0.00047457,120]
[408200661,1773222433798,-1967.52,0.00047457,120]
[408200662,1773222433825,-1967.52,0.00047457,120]
[408200663,1773222433850,-1967.52,0.00047457,120]
[408200664,1773222433874,-1967.52,0.00047457,120]
[408200665,1773222433899,-1967.52,0.00047457,120]
[408200666,1773222433923,-1967.52,0.00047457,120]
[408200667,1773222433948,-1967.52,0.00047457,120]
[408200668,1773222433973,-172.60800527,0.00047457,120]
[408200669,1773222434002,-281.61353418,0.00047457,120]
[408200670,1773222434028,-1967.52,0.00047457,120]
[408200671,1773222434053,-1967.52,0.00047457,120]
[408200672,1773222434079,-1967.52,0.00047457,120]
[408200673,1773222434104,-1967.58731357,0.00047457,120]
[408200674,1773222434130,-612.4784,0.00047457,120]
[408200675,1773222434158,-500.0,0.00047457,120]
[408200676,1773222434184,-243.82129078,0.00047457,120]
[408200677,1773222434209,-471.11541314,0.00047457,120]
[408200678,1773222434233,-584.86227985,0.00047457,120]
[408200679,1773222434258,-155.41839015,0.00047457,120]
[408200680,1773222434282,-500.0,0.00047457,120]
[408200681,1773222434306,-500.0,0.00047457,120]
[408200682,1773222434329,-500.0,0.00047457,120]
[408200683,1773222434352,-284.35996345,0.00047457,60]
[408200684,1773222434376,-500.0,0.00047457,120]
[408200685,1773222434400,-500.0,0.00047457,120]
[408200686,1773222434427,-500.0,0.00047457,120]
[408200687,1773222434459,-500.0,0.00047457,120]
[408200688,1773222434491,-500.0,0.00047457,120]
[408200689,1773222434526,-500.0,0.00047457,120]
[408200690,1773222434565,-500.0,0.00047457,120]
[408200691,1773222434595,-500.0,0.00047457,120]
[408200692,1773222434622,-555.55524864,0.00047457,120]
[408200693,1773222434650,-238.17673736,0.00047457,120]
[408200694,1773222434678,-326.52392478,0.00047457,120]
[408200695,1773222434705,-236.34285881,0.00047457,120]
[408200696,1773222434731,-3070.46,0.00047457,120]
[408200697,1773222434764,-3070.46,0.00047457,120]
[408200698,1773222434790,-3070.46,0.00047457,120]
[408200699,1773222434816,-3070.46,0.00047457,120]
[408200700,1773222434844,-3070.46,0.00047457,120]
[408200701,1773222434870,-3070.46,0.00047457,120]
[408200702,1773222434894,-3070.46,0.00047457,120]
[408200703,1773222434918,-3070.46,0.00047457,120]
[408200704,1773222434943,-3070.46,0.00047457,120]
[408200705,1773222434968,-3070.46,0.00047457,120]
[408200706,1773222434992,-3070.46,0.00047457,120]
[408200707,1773222435017,-3070.46,0.00047457,120]
[408200708,1773222435042,-3070.46,0.00047457,120]
[408200709,1773222435067,-3070.46,0.00047457,120]
[408200710,1773222435092,-3070.46,0.00047457,120]
[408200711,1773222435117,-3070.46,0.00047457,120]
[408200712,1773222435141,-3070.46,0.00047457,120]
[408200713,1773222435165,-3070.46,0.00047457,120]
[408200714,1773222435189,-3070.46,0.00047457,120]
[408200715,1773222435213,-3070.46,0.00047457,120]
[408200716,1773222435239,-3070.46,0.00047457,120]
[408200717,1773222435264,-3070.46,0.00047457,120]
[408200718,1773222435287,-3070.46,0.00047457,120]
[408200719,1773222435313,-3070.52247709,0.00047457,120]
[408200720,1773222435339,-150.57309878,0.00047457,120]
[408200721,1773222435364,-178.14201302,0.00047457,120]
[408200722,1773222435390,-449.40078824,0.00047457,120]
[408200723,1773222435421,-201.37892113,0.00047457,120]
[408200724,1773222435447,-286.9753211,0.00047457,120]
[408200725,1773222435476,-195.34753935,0.00047457,120]
[408200726,1773222435504,-233.47467515,0.00047457,120]
[408200727,1773222435688,-4467.12569834,0.00047457,120]
[408200728,1773222435718,-500.0,0.00047457,120]
[408200729,1773222435744,-500.0,0.00047457,120]
[408200730,1773222435772,-500.0,0.00047457,120]
[408200731,1773222435799,-500.0,0.00047457,120]
[408200732,1773222435824,-500.0,0.00047457,120]
[408200733,1773222435850,-500.0,0.00047457,120]
[408200734,1773222435876,-537.00565142,0.00047457,120]
[408200735,1773222435902,-167.49570214,0.00047457,120]
[408200736,1773222435927,-170.33815977,0.00047457,120]
[408200737,1773222435951,-500.0,0.00047457,120]
[408200738,1773222435986,-500.0,0.00047457,120]
[408200739,1773222436015,-500.0,0.00047457,120]
[408200740,1773222436043,-503.17027976,0.00047457,120]
[408200741,1773222436071,-500.0,0.00047457,120]
[408200742,1773222436098,-624.6929579,0.00047457,120]
[408200743,1773222436125,-500.0,0.00047457,120]
[408200744,1773222436151,-500.0,0.00047457,120]
[408200745,1773222436177,-500.0,0.00047457,120]
[408200746,1773222436203,-500.0,0.00047457,120]
[408200747,1773222436228,-500.0,0.00047457,120]
[408200748,1773222436253,-500.0,0.00047457,120]
[408200749,1773222436280,-500.0,0.00047457,120]
[408200750,1773222436307,-500.0,0.00047457,120]
[408200751,1773222436332,-500.0,0.00047457,120]
[408200752,1773222436357,-500.0,0.00047457,120]
[408200753,1773222436383,-500.0,0.00047457,120]
[408200754,1773222436412,-500.0,0.00047457,120]
[408200755,1773222436439,-500.0,0.00047457,120]
[408200756,1773222436466,-500.0,0.00047457,120]
[408200757,1773222436492,-500.0,0.00047457,120]
[408200758,1773222436520,-500.0,0.00047457,120]
[408200759,1773222436545,-500.0,0.00047457,120]
[408200760,1773222436570,-500.0,0.00047457,120]
[408200761,1773222436595,-500.0,0.00047457,120]
[408200762,1773222436624,-517.75315104,0.00047457,120]
[408200763,1773222436650,-500.0,0.00047457,120]
[408200764,1773222436676,-500.0,0.00047457,120]
[408200765,1773222436704,-500.0,0.00047457,120]
[408200766,1773222436730,-500.0,0.00047457,120]
[408200767,1773222436762,-500.0,0.00047457,120]
[408200768,1773222436788,-500.0,0.00047457,120]
[408200769,1773222436814,-500.0,0.00047457,120]
[408200770,1773222436839,-500.0,0.00047457,120]
[408200771,1773222436869,-500.0,0.00047457,120]
[408200772,1773222436894,-492.15126758,0.00047457,120]
[408200773,1773222436919,-23561.33908554,0.00047457,61]
[408200774,1773222436944,-464.28206261,0.00047457,120]
[408200775,1773222436968,-215.48997428,0.00047457,91]
[408200776,1773222436994,-252.50158682,0.00047457,120]
[408200777,1773222437020,-997.91836367,0.00047457,120]
[408200778,1773222437045,-676.57258119,0.00047457,120]
[408200779,1773222437070,-384.14966825,0.00047457,30]
[408200780,1773222437096,-500.0,0.00047457,120]
[408200781,1773222437120,-500.0,0.00047457,120]
[408200782,1773222437145,-500.0,0.00047457,120]
[408200783,1773222437170,-500.0,0.00047457,120]
[408200784,1773222437194,-500.0,0.00047457,120]
[408200785,1773222437218,-559.31198825,0.00047457,120]
[408200786,1773222437244,-1298.05726223,0.00047457,30]
[408200787,1773222437269,-2827.92399938,0.00047457,120]
[408200788,1773222437297,-373.23533943,0.00047457,120]
[408200789,1773222437321,-167.58071683,0.00047457,120]
[408200790,1773222437345,-157.09371682,0.00047457,120]
[408200791,1773222437370,-161.28860935,0.00047457,120]
[408200792,1773222437394,-340.61130701,0.00047457,30]
[408200793,1773222437419,-349.32995541,0.00047457,120]
[408200794,1773222437447,-151.22922097,0.00047457,120]
[408200795,1773222437472,-351.65783866,0.00047457,120]
[408200796,1773222437497,-500.0,0.00047457,120]
[408200797,1773222437526,-500.0,0.00047457,120]
[408200798,1773222437550,-500.0,0.00047457,120]
[408200799,1773222437574,-500.0,0.00047457,120]
[408200800,1773222437598,-500.0,0.00047457,120]
[408200801,1773222437623,-500.0,0.00047457,120]
[408200802,1773222437648,-500.0,0.00047457,120]
[408200803,1773222437673,-500.0,0.00047457,120]
[408200804,1773222437699,-500.0,0.00047457,120]
[408200805,1773222437724,-500.0,0.00047457,120]
[408200806,1773222437753,-500.0,0.00047457,120]
[408200807,1773222437780,-500.0,0.00047457,120]
[408200808,1773222437806,-500.0,0.00047457,120]
[408200809,1773222437832,-500.0,0.00047457,120]
[408200810,1773222437856,-500.0,0.00047457,120]
[408200811,1773222437880,-605.98811504,0.00047457,120]
[408200812,1773222437906,-500.0,0.00047457,120]
[408200813,1773222437930,-500.0,0.00047457,120]
[408200814,1773222437957,-500.0,0.00047457,120]
[408200815,1773222437982,-500.0,0.00047457,120]
[408200816,1773222438007,-500.0,0.00047457,120]
[408200817,1773222438033,-500.0,0.00047457,120]
[408200818,1773222438058,-500.0,0.00047457,120]
[408200819,1773222438084,-500.0,0.00047457,120]
[408200820,1773222438108,-500.0,0.00047457,120]
[408200821,1773222438133,-500.0,0.00047457,120]
[408200822,1773222438159,-500.0,0.00047457,120]
[408200823,1773222438184,-500.0,0.00047457,120]
[408200824,1773222438208,-500.0,0.00047457,120]
[408200825,1773222438232,-500.0,0.00047457,120]
[408200826,1773222438256,-500.0,0.00047457,120]
[408200827,1773222438280,-500.0,0.00047457,120]
[408200828,1773222438305,-500.0,0.00047457,120]
[408200829,1773222438330,-190.68145719,0.00047457,120]
[408200830,1773222438354,-211.34861049,0.00047457,120]
[408200831,1773222438576,-1587.36729054,0.00047457,120]
[408200832,1773222438609,-3813.03512086,0.00047457,30]
[408200833,1773222438635,-1557.31896045,0.00047457,120]
[408200834,1773222438660,-154.28810643,0.00047457,30]
[408200835,1773222438686,-568.66510911,0.00047457,120]
[408200836,1773222438711,-1651.02857941,0.00047457,30]
[408200837,1773222438740,-830.8873864,0.00047457,120]
[408200838,1773222438770,-305.81462153,0.00047457,120]
[408200839,1773222438799,-345.28168484,0.00047457,120]
[408200840,1773222438824,-390.15289868,0.00047457,120]
[408200841,1773222438851,-1044.79985501,0.00047457,47]
[408200842,1773222438876,-668.16305427,0.00047457,30]
[408200843,1773222438901,-2977.10110655,0.00047457,120]
[408200844,1773222438926,-678.58194438,0.00047457,30]
[408200845,1773222438951,-462.94309001,0.00047457,120]
[408200846,1773222438980,-249.1107795,0.00047457,120]
[408200847,1773222439006,-682.66586269,0.00047457,120]
[408200848,1773222439031,-2173.30237188,0.00047457,30]
[408200849,1773222439056,-1924.3522936,0.00047457,30]
[408200850,1773222439081,-420.44247929,0.00047457,30]
[408200851,1773222439107,-469.5812241,0.00047457,30]
[408200852,1773222439132,-10524.9105208,0.00047457,90]
[408200853,1773222439157,-500.0,0.00047457,120]
[408200854,1773222439182,-500.0,0.00047457,120]
[408200855,1773222439207,-500.32101615,0.00047457,120]
[408200856,1773222439233,-625.56,0.00047457,120]
[408200857,1773222439257,-625.56,0.00047457,120]
[408200858,1773222439282,-625.56,0.00047457,120]
[408200859,1773222439307,-625.56,0.00047457,120]
[408200860,1773222439331,-625.56,0.00047457,120]
[408200861,1773222439355,-625.56,0.00047457,120]
[408200862,1773222439381,-625.56,0.00047457,120]
[408200863,1773222439406,-625.56,0.00047457,120]
[408200864,1773222439431,-625.56,0.00047457,120]
[408200865,1773222439456,-625.56,0.00047457,120]
[408200866,1773222439482,-625.56,0.00047457,120]
[408200867,1773222439508,-625.56,0.00047457,120]
[408200868,1773222439533,-625.56,0.00047457,120]
[408200869,1773222439560,-625.56,0.00047457,120]
[408200870,1773222439585,-625.56,0.00047457,120]
[408200871,1773222439610,-625.56,0.00047457,120]
[408200872,1773222439635,-625.56,0.00047457,120]
[408200873,1773222439661,-625.56,0.00047457,120]
[408200874,1773222439686,-625.56,0.00047457,120]
[408200875,1773222439712,-625.56,0.00047457,120]
[408200876,1773222439738,-625.56,0.00047457,120]
[408200877,1773222439767,-625.56,0.00047457,120]
[408200878,1773222439794,-625.56,0.00047457,120]
[408200879,1773222439823,-625.71259881,0.00047457,120]
[408200880,1773222439848,-150.77366782,0.00047457,120]
[408200881,1773222439873,-152.59933033,0.00047457,120]
[408200882,1773222439900,-3964.65,0.00047457,120]
[408200883,1773222439926,-3964.65,0.00047457,120]
[408200884,1773222439951,-3964.65,0.00047457,120]
[408200885,1773222439975,-3964.65,0.00047457,120]
[408200886,1773222440000,-3964.65,0.00047457,120]
[408200887,1773222440025,-3964.65,0.00047457,120]
[408200888,1773222440052,-3964.65,0.00047457,120]
[408200889,1773222440078,-3964.65,0.00047457,120]
[408200890,1773222440104,-3964.65,0.00047457,120]
[408200891,1773222440131,-3964.65,0.00047457,120]
[408200892,1773222440156,-3964.65,0.00047457,120]
[408200893,1773222440182,-3964.65,0.00047457,120]
[408200894,1773222440208,-3964.65,0.00047457,120]
[408200895,1773222440234,-3964.65,0.00047457,120]
[408200896,1773222440261,-3964.65,0.00047457,120]
[408200897,1773222440288,-3964.65,0.00047457,120]
[408200898,1773222440316,-3964.65,0.00047457,120]
[408200899,1773222440344,-3964.65,0.00047457,120]
[408200900,1773222440371,-3964.65,0.00047457,120]
[408200901,1773222440403,-3964.65,0.00047457,120]
[408200902,1773222440429,-3964.65,0.00047457,120]
[408200903,1773222440456,-3964.65,0.00047457,120]
[408200904,1773222440483,-3964.65,0.00047457,120]
[408200905,1773222440510,-3964.66328375,0.00047457,120]
[408200906,1773222440537,-500.0,0.00047457,120]
[408200907,1773222440564,-500.0,0.00047457,120]
[408200908,1773222440591,-500.0,0.00047457,120]
[408200909,1773222440617,-533.34099282,0.00047457,120]
[408200910,1773222440643,-500.0,0.00047457,120]
[408200911,1773222440670,-500.0,0.00047457,120]
[408200912,1773222440697,-500.0,0.00047457,120]
[408200913,1773222440724,-500.0,0.00047457,120]
[408200914,1773222440751,-535.05405915,0.00047457,120]
[408200915,1773222440782,-500.0,0.00047457,120]
[408200916,1773222440812,-500.0,0.00047457,120]
[408200917,1773222440840,-500.0,0.00047457,120]
[408200918,1773222440868,-500.0,0.00047457,120]
[408200919,1773222440894,-500.0,0.00047457,120]
[408200920,1773222440920,-223.79168876,0.00047457,120]
[408200921,1773222440945,-500.0,0.00047457,120]
[408200922,1773222440970,-500.0,0.00047457,120]
[408200923,1773222440995,-512.47886818,0.00047457,120]
[408200924,1773222441021,-500.0,0.00047457,120]
[408200925,1773222441047,-523.43338878,0.00047457,120]
[408200926,1773222441072,-3291.12266923,0.00047457,30]
[408200927,1773222441097,-500.8603553,0.00047457,120]
[408200928,1773222441122,-500.0,0.00047457,120]
[408200929,1773222441147,-255.84143138,0.00047457,120]